[Event "*** Titled Tuesday Blitz"]
[Site "Chess.com"]
[Date "2021.02.02"]
[Round "2"]
[White "SergeyShtyka"]
[Black "kranga"]
[Result "1-0"]
[WhiteElo "2477"]
[BlackElo "2277"]
[TimeControl "180+1"]
[EndTime "10:14:37 PST"]
[Termination "SergeyShtyka won by resignation"]

1. e4 {[%clk 0:02:54.7]} 1... c5 {[%clk 0:02:59.4]} 2. Nf3 {[%clk 0:02:54.5]}
2... Nc6 {[%clk 0:02:59.6]} 3. d4 {[%clk 0:02:53.4]} 3... cxd4 {[%clk
0:03:00.5]} 4. Nxd4 {[%clk 0:02:53.9]} 4... Nf6 {[%clk 0:03:00.8]} 5. Nc3 {[%clk
0:02:54]} 5... e5 {[%clk 0:03:00.8]} 6. Ndb5 {[%clk 0:02:54.2]} 6... d6 {[%clk
0:03:00.3]} 7. Bg5 {[%clk 0:02:54]} 7... a6 {[%clk 0:03:00.4]} 8. Na3 {[%clk
0:02:54.5]} 8... b5 {[%clk 0:03:00.6]} 9. Bxf6 {[%clk 0:02:55]} 9... gxf6 {[%clk
0:03:01.2]} 10. Nd5 {[%clk 0:02:55.4]} 10... Bg7 {[%clk 0:03:01.7]} 11. c3
{[%clk 0:02:55.6]} 11... f5 {[%clk 0:03:01.4]} 12. exf5 {[%clk 0:02:56.1]} 12...
Bxf5 {[%clk 0:03:01.2]} 13. Nc2 {[%clk 0:02:56.6]} 13... O-O {[%clk 0:03:01.2]}
14. Nce3 {[%clk 0:02:56.7]} 14... Be6 {[%clk 0:03:01.1]} 15. Bd3 {[%clk
0:02:56.7]} 15... f5 {[%clk 0:03:00.8]} 16. Qh5 {[%clk 0:02:56.6]} 16... e4
{[%clk 0:02:55.4]} 17. Bc2 {[%clk 0:02:56.5]} 17... Ne5 {[%clk 0:02:53.3]} 18.
Nf4 {[%clk 0:02:56]} 18... Bf7 {[%clk 0:02:49.6]} 19. Qxf5 {[%clk 0:02:54.1]}
19... Bc4 {[%clk 0:02:34]} 20. Qxe4 {[%clk 0:02:48.3]} 20... Qf6 {[%clk
0:02:31.1]} 21. Qxh7+ {[%clk 0:02:39.4]} 21... Kf7 {[%clk 0:02:30.3]} 22. Qh5+
{[%clk 0:02:26.7]} 22... Ke7 {[%clk 0:02:28.6]} 23. Nfd5+ {[%clk 0:02:25.7]} 1-0

[Event "*** Titled Tuesday Blitz"]
[Site "Chess.com"]
[Date "2021.02.02"]
[Round "2"]
[White "ElCoachRene"]
[Black "noblerone"]
[Result "0-1"]
[WhiteElo "2190"]
[BlackElo "2428"]
[TimeControl "180+1"]
[EndTime "10:15:05 PST"]
[Termination "noblerone won by resignation"]

1. d4 {[%clk 0:03:00.9]} 1... d5 {[%clk 0:02:59.6]} 2. Bf4 {[%clk 0:03:01.3]}
2... c5 {[%clk 0:02:59.3]} 3. e3 {[%clk 0:03:01.6]} 3... Nc6 {[%clk 0:02:59.4]}
4. c3 {[%clk 0:03:01.8]} 4... Nf6 {[%clk 0:02:59.3]} 5. Nd2 {[%clk 0:03:01.5]}
5... Bf5 {[%clk 0:02:58.5]} 6. Qb3 {[%clk 0:03:01.7]} 6... Qd7 {[%clk
0:02:52.1]} 7. Ngf3 {[%clk 0:02:58.3]} 7... c4 {[%clk 0:02:51.5]} 8. Qd1 {[%clk
0:02:56.6]} 8... e6 {[%clk 0:02:50.2]} 9. Ne5 {[%clk 0:02:54.5]} 9... Nxe5
{[%clk 0:02:49.3]} 10. Bxe5 {[%clk 0:02:54]} 10... Be7 {[%clk 0:02:49]} 11. Be2
{[%clk 0:02:52.2]} 11... O-O {[%clk 0:02:47.8]} 12. O-O {[%clk 0:02:51.9]} 12...
b5 {[%clk 0:02:47.4]} 13. b3 {[%clk 0:02:51]} 13... Ba3 {[%clk 0:02:34.1]} 14.
bxc4 {[%clk 0:02:50]} 14... bxc4 {[%clk 0:02:23.4]} 15. Qe1 {[%clk 0:02:42]}
15... Bb2 {[%clk 0:02:20.1]} 16. Rd1 {[%clk 0:02:37.6]} 16... Bxc3 {[%clk
0:02:10.3]} 17. f4 {[%clk 0:02:34.9]} 17... Ne4 {[%clk 0:02:07.1]} 18. Bf3
{[%clk 0:02:22]} 18... Nxd2 {[%clk 0:02:04.5]} 19. Rxd2 {[%clk 0:02:22.9]} 19...
Bxd2 {[%clk 0:02:00.2]} 20. Qxd2 {[%clk 0:02:23.8]} 20... f6 {[%clk 0:02:00.8]}
0-1

[Event "*** Titled Tuesday Blitz"]
[Site "Chess.com"]
[Date "2021.02.02"]
[Round "2"]
[White "temiksmozg"]
[Black "Ze-Pequeno"]
[Result "1/2-1/2"]
[WhiteElo "2607"]
[BlackElo "2224"]
[TimeControl "180+1"]
[EndTime "10:15:23 PST"]
[Termination "Game drawn by repetition"]

1. d4 {[%clk 0:03:00.9]} 1... Nf6 {[%clk 0:02:57.8]} 2. c4 {[%clk 0:03:01.2]}
2... g6 {[%clk 0:02:57.3]} 3. Nc3 {[%clk 0:03:01]} 3... d5 {[%clk 0:02:57.4]} 4.
cxd5 {[%clk 0:03:00.8]} 4... Nxd5 {[%clk 0:02:58.3]} 5. e4 {[%clk 0:03:01.1]}
5... Nxc3 {[%clk 0:02:58.6]} 6. bxc3 {[%clk 0:03:02]} 6... Bg7 {[%clk
0:02:59.3]} 7. Be3 {[%clk 0:03:02.2]} 7... c5 {[%clk 0:02:59.3]} 8. Qd2 {[%clk
0:03:02.7]} 8... cxd4 {[%clk 0:02:52]} 9. cxd4 {[%clk 0:03:03.6]} 9... Nc6
{[%clk 0:02:49.4]} 10. Nf3 {[%clk 0:03:03.9]} 10... O-O {[%clk 0:02:44.7]} 11.
Rc1 {[%clk 0:03:01.8]} 11... Bg4 {[%clk 0:02:38.7]} 12. d5 {[%clk 0:03:00.8]}
12... Bxf3 {[%clk 0:02:33.1]} 13. gxf3 {[%clk 0:02:56.3]} 13... Ne5 {[%clk
0:02:29.4]} 14. Be2 {[%clk 0:02:56.4]} 14... Qd7 {[%clk 0:02:00.7]} 15. O-O
{[%clk 0:02:54.5]} 15... Qh3 {[%clk 0:01:55]} 16. Qd1 {[%clk 0:02:51.2]} 16...
Nxf3+ {[%clk 0:01:53.6]} 17. Bxf3 {[%clk 0:02:50.8]} 17... Be5 {[%clk
0:01:53.4]} 18. Re1 {[%clk 0:02:38.1]} 18... Bxh2+ {[%clk 0:01:49.3]} 19. Kh1
{[%clk 0:02:38.2]} 19... Be5+ {[%clk 0:01:33.1]} 20. Kg1 {[%clk 0:02:38.1]}
20... Bh2+ {[%clk 0:01:31.1]} 21. Kh1 {[%clk 0:02:37.9]} 21... Be5+ {[%clk
0:01:31.6]} 22. Kg1 {[%clk 0:02:37.8]} 22... Bh2+ {[%clk 0:01:32.2]} 1/2-1/2

[Event "*** Titled Tuesday Blitz"]
[Site "Chess.com"]
[Date "2021.02.02"]
[Round "2"]
[White "Ariadna_Atreides"]
[Black "GMaka"]
[Result "1-0"]
[WhiteElo "2169"]
[BlackElo "2398"]
[TimeControl "180+1"]
[EndTime "10:15:37 PST"]
[Termination "Ariadna_Atreides won by resignation"]

1. Nf3 {[%clk 0:03:00.9]} 1... Nf6 {[%clk 0:02:59.5]} 2. d4 {[%clk 0:03:00.2]}
2... g6 {[%clk 0:03:00.4]} 3. c3 {[%clk 0:02:58.6]} 3... Bg7 {[%clk 0:03:01.3]}
4. Bg5 {[%clk 0:02:58.2]} 4... O-O {[%clk 0:03:01.6]} 5. Nbd2 {[%clk 0:02:57.7]}
5... d5 {[%clk 0:02:54.9]} 6. e3 {[%clk 0:02:53.3]} 6... Ne4 {[%clk 0:02:54.7]}
7. Nxe4 {[%clk 0:02:48.6]} 7... dxe4 {[%clk 0:02:55.6]} 8. Nd2 {[%clk
0:02:47.9]} 8... f5 {[%clk 0:02:56.1]} 9. Bc4+ {[%clk 0:02:41.7]} 9... e6 {[%clk
0:02:55.7]} 10. Bxd8 {[%clk 0:02:38.8]} 10... Rxd8 {[%clk 0:02:56.6]} 11. Qb3
{[%clk 0:02:37.8]} 11... Kf7 {[%clk 0:02:55]} 12. f3 {[%clk 0:02:37.6]} 12...
exf3 {[%clk 0:02:54.6]} 13. Nxf3 {[%clk 0:02:37.3]} 13... h6 {[%clk 0:02:55.5]}
14. O-O {[%clk 0:02:33.8]} 14... Nc6 {[%clk 0:02:54.9]} 15. d5 {[%clk 0:02:31]}
15... Na5 {[%clk 0:02:45.6]} 16. dxe6+ {[%clk 0:02:30.6]} 16... Kf6 {[%clk
0:02:46.2]} 17. Qa4 {[%clk 0:02:25.6]} 17... Nxc4 {[%clk 0:02:46.1]} 18. Qxc4
{[%clk 0:02:25]} 18... c6 {[%clk 0:02:44.5]} 19. Rad1 {[%clk 0:02:22.8]} 19...
Bxe6 {[%clk 0:02:43.8]} 20. Qb4 {[%clk 0:02:19.7]} 20... b6 {[%clk 0:02:42.1]}
21. Rxd8 {[%clk 0:02:09.7]} 21... Rxd8 {[%clk 0:02:43]} 22. Qa4 {[%clk
0:02:03.6]} 22... b5 {[%clk 0:02:38.1]} 23. Qxa7 {[%clk 0:02:00.6]} 23... Bc4
{[%clk 0:02:38.6]} 24. Re1 {[%clk 0:01:59]} 24... Re8 {[%clk 0:02:34.8]} 25. Qb6
{[%clk 0:01:55.3]} 25... Re6 {[%clk 0:02:34.7]} 26. Nd4 {[%clk 0:01:54.7]} 26...
Rd6 {[%clk 0:02:35.3]} 27. Qc7 {[%clk 0:01:53.4]} 27... Bf8 {[%clk 0:02:34.8]}
28. Nxc6 {[%clk 0:01:51.9]} 28... Rd2 {[%clk 0:02:33.7]} 29. e4 {[%clk
0:01:49.7]} 29... Bc5+ {[%clk 0:02:32.1]} 30. Kh1 {[%clk 0:01:48.3]} 30... f4
{[%clk 0:02:29]} 1-0

[Event "*** Titled Tuesday Blitz"]
[Site "Chess.com"]
[Date "2021.02.02"]
[Round "2"]
[White "Tactictic"]
[Black "manitodeplomo"]
[Result "0-1"]
[WhiteElo "2377"]
[BlackElo "2649"]
[TimeControl "180+1"]
[EndTime "10:15:41 PST"]
[Termination "manitodeplomo won by resignation"]

1. e4 {[%clk 0:03:00.9]} 1... g6 {[%clk 0:02:51]} 2. d4 {[%clk 0:02:58.9]} 2...
Bg7 {[%clk 0:02:51.4]} 3. Nc3 {[%clk 0:02:51.4]} 3... c5 {[%clk 0:02:49.7]} 4.
dxc5 {[%clk 0:01:47.8]} 4... Bxc3+ {[%clk 0:02:47.2]} 5. bxc3 {[%clk 0:01:47.4]}
5... Nf6 {[%clk 0:02:48.1]} 6. e5 {[%clk 0:01:42.1]} 6... Ne4 {[%clk 0:02:45.4]}
7. f3 {[%clk 0:01:27]} 7... Nxc5 {[%clk 0:02:40.8]} 8. Be3 {[%clk 0:01:23.5]}
8... Qc7 {[%clk 0:02:39.5]} 9. Bd4 {[%clk 0:01:21.8]} 9... Ne6 {[%clk
0:02:37.2]} 10. Ne2 {[%clk 0:01:10.4]} 10... Nc6 {[%clk 0:02:36.7]} 11. f4
{[%clk 0:01:09.7]} 11... b6 {[%clk 0:02:30]} 12. g3 {[%clk 0:01:09.5]} 12... Bb7
{[%clk 0:02:30.1]} 13. Bg2 {[%clk 0:01:09.1]} 13... Ncxd4 {[%clk 0:02:27.4]} 0-1

[Event "*** Titled Tuesday Blitz"]
[Site "Chess.com"]
[Date "2021.02.02"]
[Round "2"]
[White "Skat2704"]
[Black "slavenok"]
[Result "1-0"]
[WhiteElo "2503"]
[BlackElo "2686"]
[TimeControl "180+1"]
[EndTime "10:16:04 PST"]
[Termination "Skat2704 won by resignation"]

1. d4 {[%clk 0:03:00.9]} 1... d5 {[%clk 0:02:59.5]} 2. Nf3 {[%clk 0:03:00.5]}
2... e6 {[%clk 0:02:59.8]} 3. c4 {[%clk 0:03:01]} 3... Nf6 {[%clk 0:03:00]} 4.
Nc3 {[%clk 0:03:01.1]} 4... Bb4 {[%clk 0:03:00.5]} 5. Bg5 {[%clk 0:03:00.4]}
5... O-O {[%clk 0:03:00]} 6. e3 {[%clk 0:03:00.3]} 6... h6 {[%clk 0:03:00.2]} 7.
Bh4 {[%clk 0:02:52.8]} 7... b6 {[%clk 0:03:00.4]} 8. Bd3 {[%clk 0:02:52.2]} 8...
Bb7 {[%clk 0:02:56.7]} 9. O-O {[%clk 0:02:51.9]} 9... dxc4 {[%clk 0:02:56.5]}
10. Bxc4 {[%clk 0:02:51.4]} 10... Nbd7 {[%clk 0:02:56.9]} 11. Qe2 {[%clk
0:02:49.3]} 11... c5 {[%clk 0:02:57]} 12. Rfd1 {[%clk 0:02:48.5]} 12... cxd4
{[%clk 0:02:56.9]} 13. Nxd4 {[%clk 0:02:47.7]} 13... Qe7 {[%clk 0:02:52.2]} 14.
Rac1 {[%clk 0:02:28.3]} 14... Ne5 {[%clk 0:02:48.5]} 15. Bb3 {[%clk 0:02:25.8]}
15... Ng6 {[%clk 0:02:44.7]} 16. Bg3 {[%clk 0:02:22.5]} 16... Rac8 {[%clk
0:02:41.5]} 17. Ncb5 {[%clk 0:02:19.1]} 17... a6 {[%clk 0:02:34.3]} 18. Na7
{[%clk 0:02:09.5]} 18... Rxc1 {[%clk 0:02:29.5]} 19. Rxc1 {[%clk 0:02:09.1]}
19... Bxg2 {[%clk 0:02:03.7]} 20. Nac6 {[%clk 0:02:06]} 20... Qb7 {[%clk
0:01:46.2]} 21. Nxb4 {[%clk 0:02:03.9]} 21... Bh1 {[%clk 0:01:42.5]} 22. f3
{[%clk 0:01:58.6]} 22... a5 {[%clk 0:01:42.3]} 23. Nbc6 {[%clk 0:01:54.1]} 1-0

[Event "*** Titled Tuesday Blitz"]
[Site "Chess.com"]
[Date "2021.02.02"]
[Round "2"]
[White "ChristopherYoo"]
[Black "NicoChasin"]
[Result "1-0"]
[WhiteElo "2871"]
[BlackElo "2556"]
[TimeControl "180+1"]
[EndTime "10:16:34 PST"]
[Termination "ChristopherYoo won by resignation"]

1. d4 {[%clk 0:03:00.9]} 1... Nf6 {[%clk 0:02:59.5]} 2. Nf3 {[%clk 0:03:00.7]}
2... c5 {[%clk 0:02:58.4]} 3. d5 {[%clk 0:02:55.4]} 3... d6 {[%clk 0:02:58.6]}
4. Bg5 {[%clk 0:02:52.6]} 4... Ne4 {[%clk 0:02:57.1]} 5. Bf4 {[%clk 0:02:48.5]}
5... Bg4 {[%clk 0:02:56.2]} 6. Nbd2 {[%clk 0:02:47.1]} 6... Nxd2 {[%clk
0:02:55.3]} 7. Nxd2 {[%clk 0:02:42.6]} 7... Nd7 {[%clk 0:02:52.9]} 8. f3 {[%clk
0:02:42.2]} 8... Bh5 {[%clk 0:02:52.9]} 9. e4 {[%clk 0:02:42.2]} 9... e5 {[%clk
0:02:47.9]} 10. dxe6 {[%clk 0:02:40.3]} 10... fxe6 {[%clk 0:02:47.8]} 11. Bb5
{[%clk 0:02:27.9]} 11... e5 {[%clk 0:02:45.5]} 12. Be3 {[%clk 0:02:25.3]} 12...
a6 {[%clk 0:02:45.4]} 13. Bc4 {[%clk 0:02:14]} 13... Bf7 {[%clk 0:02:43.7]} 14.
Bxf7+ {[%clk 0:02:13]} 14... Kxf7 {[%clk 0:02:44.6]} 15. O-O {[%clk 0:02:12.3]}
15... b5 {[%clk 0:02:44.2]} 16. f4 {[%clk 0:01:59.6]} 16... exf4 {[%clk
0:02:42.9]} 17. Qh5+ {[%clk 0:01:55.9]} 17... g6 {[%clk 0:02:27.3]} 18. Qd5+
{[%clk 0:01:53.8]} 18... Kg7 {[%clk 0:02:22.4]} 19. Rxf4 {[%clk 0:01:53.2]}
19... Ne5 {[%clk 0:02:16.3]} 20. Nf3 {[%clk 0:01:40.6]} 20... Nxf3+ {[%clk
0:02:13.4]} 21. Rxf3 {[%clk 0:01:39.8]} 21... Ra7 {[%clk 0:02:13.9]} 22. Bg5
{[%clk 0:01:39.1]} 1-0

[Event "*** Titled Tuesday Blitz"]
[Site "Chess.com"]
[Date "2021.02.02"]
[Round "2"]
[White "federicosellitti"]
[Black "Nachsueb"]
[Result "1-0"]
[WhiteElo "2419"]
[BlackElo "2169"]
[TimeControl "180+1"]
[EndTime "10:16:35 PST"]
[Termination "federicosellitti won by resignation"]

1. e4 {[%clk 0:03:00.9]} 1... c5 {[%clk 0:02:58.5]} 2. Nc3 {[%clk 0:03:01.4]}
2... Nc6 {[%clk 0:02:56.2]} 3. g3 {[%clk 0:03:02.3]} 3... e6 {[%clk 0:02:56]} 4.
Bg2 {[%clk 0:03:03]} 4... g6 {[%clk 0:02:56.4]} 5. d3 {[%clk 0:03:03.4]} 5...
Bg7 {[%clk 0:02:57.1]} 6. Be3 {[%clk 0:03:04.1]} 6... d6 {[%clk 0:02:56.5]} 7.
Qd2 {[%clk 0:03:04.3]} 7... Nge7 {[%clk 0:02:55.2]} 8. Bh6 {[%clk 0:03:04.5]}
8... O-O {[%clk 0:02:54.8]} 9. h4 {[%clk 0:03:04.8]} 9... e5 {[%clk 0:02:50.2]}
10. h5 {[%clk 0:03:04.6]} 10... f5 {[%clk 0:02:46.9]} 11. Bxg7 {[%clk
0:03:03.8]} 11... Kxg7 {[%clk 0:02:46.9]} 12. hxg6 {[%clk 0:03:04.7]} 12... hxg6
{[%clk 0:02:44.9]} 13. Qh6+ {[%clk 0:03:04.4]} 13... Kf6 {[%clk 0:02:44.7]} 14.
Nf3 {[%clk 0:02:39.5]} 14... Be6 {[%clk 0:02:35.9]} 15. Qh4+ {[%clk 0:02:13.7]}
15... Kg7 {[%clk 0:02:30.2]} 16. Ng5 {[%clk 0:01:59]} 16... Qd7 {[%clk 0:02:21]}
17. exf5 {[%clk 0:01:24.8]} 17... Bxf5 {[%clk 0:02:00.7]} 18. Qh7+ {[%clk
0:01:16.6]} 18... Kf6 {[%clk 0:01:57.8]} 19. Nce4+ {[%clk 0:01:17.1]} 19... Bxe4
{[%clk 0:01:57.3]} 20. Nxe4+ {[%clk 0:01:18]} 20... Ke6 {[%clk 0:01:57.2]} 21.
Bh3+ {[%clk 0:01:18.6]} 21... Nf5 {[%clk 0:01:55.4]} 22. Ng5+ {[%clk 0:01:10.9]}
22... Kd5 {[%clk 0:01:53.8]} 23. Qxd7 {[%clk 0:01:10.9]} 23... Kd4 {[%clk
0:01:54.7]} 1-0

[Event "*** Titled Tuesday Blitz"]
[Site "Chess.com"]
[Date "2021.02.02"]
[Round "2"]
[White "oogee"]
[Black "Konavets"]
[Result "0-1"]
[WhiteElo "2356"]
[BlackElo "2925"]
[TimeControl "180+1"]
[EndTime "10:16:47 PST"]
[Termination "Konavets won on time"]

1. d4 {[%clk 0:03:00.9]} 1... Nf6 {[%clk 0:02:59.9]} 2. c4 {[%clk 0:02:57.6]}
2... c5 {[%clk 0:03:00.7]} 3. d5 {[%clk 0:02:57.5]} 3... e6 {[%clk 0:03:00.6]}
4. Nc3 {[%clk 0:02:57]} 4... exd5 {[%clk 0:03:01.5]} 5. cxd5 {[%clk 0:02:57.3]}
5... d6 {[%clk 0:03:02.4]} 6. Nf3 {[%clk 0:02:55.3]} 6... g6 {[%clk 0:03:03.3]}
7. Nd2 {[%clk 0:02:55.5]} 7... Bg7 {[%clk 0:03:04.2]} 8. e4 {[%clk 0:02:55.7]}
8... O-O {[%clk 0:03:05.1]} 9. Be2 {[%clk 0:02:55.7]} 9... Na6 {[%clk 0:03:04]}
10. O-O {[%clk 0:02:51.2]} 10... Nc7 {[%clk 0:03:04.9]} 11. a4 {[%clk 0:02:46]}
11... b6 {[%clk 0:03:04.5]} 12. Re1 {[%clk 0:02:33.7]} 12... Rb8 {[%clk
0:03:01.2]} 13. h3 {[%clk 0:01:52.6]} 13... Re8 {[%clk 0:02:58.6]} 14. Bb5
{[%clk 0:01:44.5]} 14... Re7 {[%clk 0:02:54.9]} 15. Nc4 {[%clk 0:01:37.7]} 15...
a6 {[%clk 0:02:55]} 16. Bc6 {[%clk 0:01:37.8]} 16... b5 {[%clk 0:02:55.5]} 17.
Nxd6 {[%clk 0:01:13.6]} 17... Qxd6 {[%clk 0:02:54]} 18. e5 {[%clk 0:01:13.7]}
18... Rxe5 {[%clk 0:02:54]} 19. Rxe5 {[%clk 0:01:13.9]} 19... Qxe5 {[%clk
0:02:54.4]} 20. d6 {[%clk 0:01:13.3]} 20... Ne6 {[%clk 0:02:53.2]} 21. axb5
{[%clk 0:00:32.2]} 21... axb5 {[%clk 0:02:52.5]} 22. Nxb5 {[%clk 0:00:23.1]}
22... Bd7 {[%clk 0:02:52.1]} 23. Bxd7 {[%clk 0:00:12.9]} 23... Nxd7 {[%clk
0:02:53]} 24. Na7 {[%clk 0:00:09.4]} 24... Nd4 {[%clk 0:02:52.5]} 25. Be3 {[%clk
0:00:08.4]} 25... Qxd6 {[%clk 0:02:52.6]} 26. Qa4 {[%clk 0:00:04.7]} 26... Ne5
{[%clk 0:02:51.3]} 27. Qa5 {[%clk 0:00:02.4]} 27... Nc4 {[%clk 0:02:50.2]} 28.
Qc3 {[%clk 0:00:02.6]} 28... Ne2+ {[%clk 0:02:49.7]} 0-1

[Event "*** Titled Tuesday Blitz"]
[Site "Chess.com"]
[Date "2021.02.02"]
[Round "2"]
[White "Gerryisplaying"]
[Black "Mops_2004"]
[Result "0-1"]
[WhiteElo "2310"]
[BlackElo "2535"]
[TimeControl "180+1"]
[EndTime "10:17:03 PST"]
[Termination "Mops_2004 won by resignation"]

1. d4 {[%clk 0:03:00.9]} 1... g6 {[%clk 0:02:59.2]} 2. e4 {[%clk 0:02:56]} 2...
d6 {[%clk 0:02:58.8]} 3. Nc3 {[%clk 0:02:54]} 3... Nf6 {[%clk 0:02:58.5]} 4. Be3
{[%clk 0:02:49.9]} 4... c6 {[%clk 0:02:58.2]} 5. Qd2 {[%clk 0:02:25.6]} 5...
Nbd7 {[%clk 0:02:53.4]} 6. Nf3 {[%clk 0:02:15.9]} 6... Bg7 {[%clk 0:02:36]} 7.
Bd3 {[%clk 0:01:59.1]} 7... O-O {[%clk 0:02:25.1]} 8. O-O-O {[%clk 0:01:53.9]}
8... e5 {[%clk 0:02:11.8]} 9. dxe5 {[%clk 0:01:45.8]} 9... dxe5 {[%clk
0:02:01.4]} 10. Bc4 {[%clk 0:01:40.4]} 10... b5 {[%clk 0:01:42.7]} 11. Bd3
{[%clk 0:01:28.8]} 11... Ng4 {[%clk 0:01:06.8]} 12. Bg5 {[%clk 0:01:22]} 12...
f6 {[%clk 0:01:06.9]} 13. Bh4 {[%clk 0:01:20.2]} 13... Bh6 {[%clk 0:01:06.6]}
0-1

[Event "*** Titled Tuesday Blitz"]
[Site "Chess.com"]
[Date "2021.02.02"]
[Round "2"]
[White "Lion-Al-Messi"]
[Black "GMJustin"]
[Result "1-0"]
[WhiteElo "2569"]
[BlackElo "2298"]
[TimeControl "180+1"]
[EndTime "10:17:09 PST"]
[Termination "Lion-Al-Messi won on time"]

1. e4 {[%clk 0:03:00.9]} 1... e5 {[%clk 0:02:59.1]} 2. Nf3 {[%clk 0:03:01.2]}
2... Nc6 {[%clk 0:02:58.9]} 3. Bb5 {[%clk 0:03:01.9]} 3... a6 {[%clk 0:02:59.3]}
4. Ba4 {[%clk 0:03:02.3]} 4... Nf6 {[%clk 0:02:59.1]} 5. O-O {[%clk 0:03:02.2]}
5... Be7 {[%clk 0:02:53.7]} 6. Qe2 {[%clk 0:03:02.2]} 6... b5 {[%clk 0:02:39.3]}
7. Bb3 {[%clk 0:03:01.6]} 7... Bb7 {[%clk 0:02:27.7]} 8. c3 {[%clk 0:02:58.9]}
8... d6 {[%clk 0:02:13.8]} 9. d4 {[%clk 0:02:58.4]} 9... O-O {[%clk 0:02:05]}
10. Rd1 {[%clk 0:02:45.2]} 10... Qc8 {[%clk 0:01:45.7]} 11. Bg5 {[%clk
0:02:39.9]} 11... h6 {[%clk 0:01:29]} 12. Bh4 {[%clk 0:02:37.4]} 12... Qg4
{[%clk 0:01:16]} 13. h3 {[%clk 0:02:38]} 13... Qxe4 {[%clk 0:01:07.1]} 14. Qxe4
{[%clk 0:02:32.3]} 14... Nxe4 {[%clk 0:01:08]} 15. Bd5 {[%clk 0:02:32.4]} 15...
Bxh4 {[%clk 0:01:02.2]} 16. Bxe4 {[%clk 0:02:29.3]} 16... Bf6 {[%clk 0:00:59.2]}
17. Nbd2 {[%clk 0:02:27.1]} 17... Rad8 {[%clk 0:00:34.4]} 18. dxe5 {[%clk
0:02:27.2]} 18... dxe5 {[%clk 0:00:33.4]} 19. Nb3 {[%clk 0:02:27.5]} 19... Na5
{[%clk 0:00:22.9]} 20. Nc5 {[%clk 0:02:27.7]} 20... Bxe4 {[%clk 0:00:20.5]} 21.
Nxe4 {[%clk 0:02:28.6]} 21... Nc4 {[%clk 0:00:17.4]} 22. b3 {[%clk 0:02:27.8]}
22... Nd6 {[%clk 0:00:16.8]} 23. Nc5 {[%clk 0:02:28]} 23... e4 {[%clk
0:00:16.6]} 24. Nd4 {[%clk 0:02:26.7]} 24... a5 {[%clk 0:00:09.1]} 25. Nc6
{[%clk 0:02:25.4]} 1-0

[Event "*** Titled Tuesday Blitz"]
[Site "Chess.com"]
[Date "2021.02.02"]
[Round "2"]
[White "svilson23"]
[Black "Chessmasterzt"]
[Result "0-1"]
[WhiteElo "2256"]
[BlackElo "2620"]
[TimeControl "180+1"]
[EndTime "10:17:11 PST"]
[Termination "Chessmasterzt won by resignation"]

1. d4 {[%clk 0:03:00.9]} 1... Nf6 {[%clk 0:02:58.9]} 2. Bg5 {[%clk 0:03:01.5]}
2... Ne4 {[%clk 0:02:57]} 3. Bf4 {[%clk 0:03:01.7]} 3... c5 {[%clk 0:02:55.2]}
4. f3 {[%clk 0:02:57.3]} 4... Nf6 {[%clk 0:02:52.2]} 5. d5 {[%clk 0:02:56.9]}
5... e6 {[%clk 0:02:28.5]} 6. c4 {[%clk 0:02:36.7]} 6... exd5 {[%clk 0:02:19.8]}
7. cxd5 {[%clk 0:02:36.3]} 7... Nh5 {[%clk 0:02:18.6]} 8. Qd2 {[%clk 0:01:45.5]}
8... Nxf4 {[%clk 0:02:10.9]} 9. Qxf4 {[%clk 0:01:46.4]} 9... d6 {[%clk
0:01:58.6]} 10. Nc3 {[%clk 0:01:45.8]} 10... Be7 {[%clk 0:01:56.7]} 11. e4
{[%clk 0:01:42.6]} 11... O-O {[%clk 0:01:56.2]} 12. Bd3 {[%clk 0:01:34.4]} 12...
a6 {[%clk 0:01:50.4]} 13. a4 {[%clk 0:01:34.1]} 13... Qb6 {[%clk 0:01:46.3]} 14.
Nge2 {[%clk 0:01:27.2]} 14... Nd7 {[%clk 0:01:41]} 15. Bc2 {[%clk 0:01:15.9]}
15... c4 {[%clk 0:01:36.3]} 16. O-O-O {[%clk 0:01:03.6]} 16... Nc5 {[%clk
0:01:31.1]} 17. Nd4 {[%clk 0:00:59.4]} 17... Qd8 {[%clk 0:01:24]} 18. Nf5 {[%clk
0:00:51.2]} 18... Bg5 {[%clk 0:01:22.8]} 0-1

[Event "*** Titled Tuesday Blitz"]
[Site "Chess.com"]
[Date "2021.02.02"]
[Round "2"]
[White "JAAC2002"]
[Black "BJthechessgod"]
[Result "1-0"]
[WhiteElo "2513"]
[BlackElo "2302"]
[TimeControl "180+1"]
[EndTime "10:17:22 PST"]
[Termination "JAAC2002 won by resignation"]

1. d4 {[%clk 0:02:59.4]} 1... Nf6 {[%clk 0:02:56.7]} 2. Nf3 {[%clk 0:02:59.4]}
2... e6 {[%clk 0:02:56.5]} 3. Bf4 {[%clk 0:02:59.1]} 3... Be7 {[%clk 0:02:49]}
4. Nbd2 {[%clk 0:02:58.3]} 4... O-O {[%clk 0:02:49.2]} 5. e4 {[%clk 0:02:58.5]}
5... c5 {[%clk 0:02:43]} 6. c3 {[%clk 0:02:58.5]} 6... d5 {[%clk 0:02:36.1]} 7.
e5 {[%clk 0:02:58.2]} 7... Nfd7 {[%clk 0:02:35.1]} 8. Bd3 {[%clk 0:02:57.7]}
8... Nc6 {[%clk 0:02:34.1]} 9. h4 {[%clk 0:02:57.3]} 9... h6 {[%clk 0:02:30]}
10. g4 {[%clk 0:02:53.1]} 10... cxd4 {[%clk 0:02:25.3]} 11. cxd4 {[%clk
0:02:52.3]} 11... Qb6 {[%clk 0:02:25.9]} 12. Nb3 {[%clk 0:02:48.6]} 12... Na5
{[%clk 0:02:19.5]} 13. g5 {[%clk 0:02:44.8]} 13... Nxb3 {[%clk 0:02:17.8]} 14.
axb3 {[%clk 0:02:45.2]} 14... h5 {[%clk 0:02:13.1]} 15. g6 {[%clk 0:02:38.1]}
15... f6 {[%clk 0:02:00.5]} 16. Ng5 {[%clk 0:01:47.1]} 16... Qb4+ {[%clk
0:01:31.6]} 17. Bd2 {[%clk 0:01:20.2]} 17... Qxd4 {[%clk 0:00:59.4]} 18. Qxh5
{[%clk 0:01:18.6]} 18... Qxe5+ {[%clk 0:00:51.3]} 19. Kd1 {[%clk 0:01:13.3]} 1-0